bitfinex/quotes_SOLUSD_20250919
["timestamp","ask_amount","ask_price","bid_price","bid_amount"]
[1758247916739,31.58,247.15,247.14,9.28503289]
[1758247917044,31.58,247.15,247.14,7.01066122]
[1758247917245,45.17559401,247.15,247.14,7.01066122]
[1758247917964,45.17559401,247.15,247.14,6.32066122]
[1758247918528,45.17559401,247.15,247.14,7.02066122]
[1758247919241,45.17559401,247.15,247.14,4.74628955]
[1758247919645,45.17559401,247.15,247.14,4.04628955]
[1758247919954,45.17559401,247.15,247.14,7.02066122]
[1758247921231,0.06,247.15,247.14,7.02066122]
[1758247921454,31.56,247.15,247.14,7.02066122]
[1758247924862,0.06,247.15,247.14,7.02066122]
[1758247925063,12.04710183,247.18,247.14,19.41075677]
[1758247925064,31.5,247.16,247.14,19.41075677]
[1758247925274,31.5,247.16,247.15,2.97437167]
[1758247925767,13.59559401,247.27,247.17,26.0]
[1758247925955,0.28432314,247.25,247.23,2.27437167]
[1758247926152,0.14216157,247.25,247.23,2.97437167]
[1758247926460,45.09559401,247.24,247.23,2.97437167]
[1758247926660,13.59559401,247.24,247.23,2.97437167]
[1758247926860,31.5,247.24,247.23,2.97437167]
[1758247927361,31.5,247.24,247.23,7.01918823]
[1758247927768,0.28432314,247.28,247.23,0.7]
[1758247927951,13.59559401,247.26,247.24,4.04465296]
[1758247928267,45.11559401,247.25,247.24,4.04465296]
[1758247928950,13.59559401,247.25,247.24,7.01902463]
[1758247929150,45.09559401,247.25,247.24,7.01902463]
[1758247930151,0.06,247.25,247.24,17.13065705]
[1758247930358,31.56,247.25,247.24,17.13065705]
[1758247930541,0.06,247.25,247.24,17.13065705]
[1758247931446,13.65559401,247.25,247.24,4.04465296]
[1758247931654,14.30559401,247.25,247.22,4.04486082]
[1758247932056,13.65559401,247.25,247.22,4.04486082]
[1758247932256,13.65559401,247.25,247.23,0.7]
[1758247932474,13.65559401,247.25,247.23,2.97437167]
[1758247932671,13.65559401,247.25,247.22,6.31923249]
[1758247932857,13.65559401,247.25,247.23,2.97437167]
[1758247933058,0.06,247.25,247.24,2.97437167]
[1758247933264,0.06,247.25,247.24,28.97437167]
[1758247933577,0.06,247.25,247.24,33.01902463]
[1758247936477,0.06,247.25,247.24,7.01902463]
[1758247937471,0.06,247.25,247.24,6.31902463]
[1758247937671,13.59559401,247.24,247.22,4.0448622]
[1758247937872,0.28432314,247.23,247.19,2.27437167]
[1758247938066,13.59559401,247.21,247.19,2.97437167]
[1758247938386,13.59559401,247.21,247.2,2.27437167]
[1758247938559,13.59559401,247.21,247.19,6.31980947]
[1758247938766,14.24559401,247.21,247.19,6.31980947]
[1758247939287,14.24559401,247.21,247.19,4.0454378]
[1758247939456,13.59559401,247.21,247.19,4.0454378]
[1758247939665,13.59559401,247.21,247.19,6.31980947]
[1758247939864,13.59559401,247.21,247.19,4.0454378]
[1758247940091,13.59559401,247.21,247.17,6.32003639]
[1758247940259,13.59559401,247.19,247.17,4.04566472]
[1758247940459,45.07559401,247.18,247.17,4.04566472]
[1758247941159,45.07559401,247.18,247.17,6.32003639]
[1758247942083,45.07559401,247.18,247.17,4.04566472]
[1758247944458,45.07559401,247.18,247.17,6.32003639]
[1758247945283,45.07559401,247.18,247.17,2.27437167]
[1758247945498,13.59559401,247.17,247.15,4.04596634]
[1758247945686,31.46,247.16,247.15,4.04596634]
[1758247946784,31.46,247.16,247.15,6.32033801]
[1758247947167,13.59559401,247.17,247.15,7.00033801]
[1758247947496,31.46,247.16,247.15,4.72596634]
[1758247947672,13.59559401,247.17,247.15,4.72596634]
[1758247947873,31.44,247.16,247.15,4.72596634]
[1758247948592,31.44,247.16,247.15,7.00033801]
[1758247949080,13.59559401,247.17,247.15,7.00033801]
[1758247949395,13.59559401,247.17,247.16,2.27437167]
[1758247949589,45.03559401,247.17,247.16,2.27437167]
[1758247950295,45.03559401,247.17,247.16,6.32033379]
[1758247950464,13.59559401,247.22,247.16,17.11523911]
[1758247950670,13.59559401,247.22,247.21,2.27437167]
[1758247950865,45.99991715,247.22,247.2,2.27437167]
[1758247951083,14.25559401,247.21,247.2,2.27437167]
[1758247951281,13.59559401,247.2,247.17,2.27437167]
[1758247951592,13.59559401,247.18,247.17,2.27437167]
[1758247952396,13.59559401,247.18,247.17,7.0001701]
[1758247952580,31.44,247.18,247.17,17.11466619]
[1758247954878,13.59559401,247.22,247.2,30.0451806]
[1758247955077,45.71559401,247.21,247.2,4.0451806]
[1758247955702,13.59559401,247.2,247.19,2.27437167]
[1758247955892,14.53991715,247.2,247.18,6.31996555]
[1758247956494,14.53991715,247.2,247.18,32.31996555]
[1758247956807,0.3,247.24,247.19,2.95437167]
[1758247956973,13.87991715,247.22,247.21,28.27437167]
[1758247957173,0.96,247.24,247.21,28.27437167]
[1758247957392,0.28432314,247.22,247.21,28.27437167]
[1758247957797,0.28432314,247.22,247.21,6.31951547]
[1758247959176,0.28432314,247.22,247.21,2.27437167]
[1758247959379,0.94432314,247.22,247.21,2.27437167]
[1758247959567,0.94432314,247.22,247.2,6.31967911]
[1758247959774,0.28432314,247.22,247.2,6.31967911]
[1758247960887,45.29991715,247.21,247.2,6.31967911]
[1758247963805,45.29991715,247.21,247.2,5.49948915]
[1758247965183,45.29991715,247.21,247.2,1.45418171]
[1758247965386,13.59559401,247.2,247.19,1.45418171]
[1758247966801,14.25559401,247.2,247.16,1.45418171]
[1758247967002,32.34,247.19,247.16,1.45418171]
[1758247967496,31.68,247.19,247.16,1.45418171]
[1758247967685,31.68,247.19,247.16,15.61504915]
[1758247967887,31.68,247.19,247.17,1.45418171]
[1758247969598,45.27559401,247.19,247.18,4.07563476]
[1758247970513,44.97559401,247.19,247.18,4.07563476]
[1758247971703,44.97559401,247.19,247.18,0.03]
[1758247972617,45.91991715,247.19,247.18,0.03]
[1758247973519,45.25991715,247.19,247.18,0.03]
[1758247974394,48.63846676,247.19,247.18,0.03]
[1758247974596,50.09264847,247.19,247.18,0.03]
[1758247976318,48.63846676,247.19,247.18,0.03]
[1758247979731,50.09264847,247.19,247.18,0.03]
[1758247980497,48.63846676,247.19,247.18,0.03]
[1758247981910,50.09264847,247.19,247.18,0.03]
[1758247983133,48.63846676,247.19,247.18,0.03]
[1758247983436,50.09264847,247.19,247.18,0.03]
[1758247983807,48.63846676,247.19,247.18,0.03]
[1758247984006,50.09264847,247.19,247.18,0.03]
[1758247984910,18.71264847,247.19,247.18,0.03]
[1758247985320,62.32874526,247.19,247.18,0.03]
[1758247985530,60.87456355,247.19,247.18,0.03]
[1758247985826,61.01672512,247.19,247.18,0.03]
[1758247986026,29.00672512,247.19,247.18,0.03]
[1758247986228,60.36672512,247.19,247.18,1.48418171]
[1758247986408,60.08240198,247.19,247.18,1.48418171]
[1758247986726,60.87456355,247.19,247.18,0.03]
[1758247987116,61.01672512,247.19,247.18,0.03]
[1758247988326,60.36672512,247.19,247.18,0.03]
[1758247989425,29.65672512,247.19,247.18,0.03]
[1758247989634,61.01672512,247.19,247.18,0.03]
[1758247991436,60.36672512,247.19,247.18,0.03]
[1758247992312,60.36672512,247.19,247.18,1.48418171]
[1758247994225,60.36672512,247.19,247.18,0.03]
[1758247995537,60.36672512,247.19,247.18,1.48418171]
[1758247996521,29.00672512,247.19,247.18,2.14418171]
[1758247996713,60.08240198,247.19,247.18,2.14418171]
[1758247996914,60.36672512,247.19,247.18,2.14418171]
[1758247997532,60.36672512,247.19,247.18,6.18981647]
[1758247997751,60.36672512,247.19,247.18,0.69]
[1758247997915,61.01672512,247.19,247.18,0.03]
[1758247998255,60.36672512,247.19,247.18,0.03]
[1758247999115,60.36672512,247.19,247.18,1.48418171]
[1758248001436,28.72240198,247.19,247.18,6.18981647]
[1758248001644,60.08240198,247.19,247.18,6.18981647]
[1758248003824,28.72240198,247.19,247.18,5.52981647]
[1758248004024,60.08240198,247.19,247.18,5.52981647]
[1758248004225,60.08240198,247.19,247.18,0.03]
[1758248004226,60.36672512,247.19,247.18,0.03]
[1758248004541,60.36672512,247.19,247.18,1.48418171]
[1758248005344,60.36672512,247.19,247.18,0.03]
[1758248005846,60.42672512,247.19,247.18,0.03]
[1758248006048,48.01846676,247.19,247.18,0.03]
[1758248006451,48.70846676,247.19,247.18,0.03]
[1758248006756,48.01846676,247.19,247.18,0.03]
[1758248007853,48.70846676,247.19,247.18,0.03]
[1758248008330,50.16264847,247.19,247.18,0.03]
[1758248009652,48.01846676,247.19,247.18,0.03]
[1758248012039,13.59559401,247.16,247.15,4.75608842]
[1758248012237,47.93846676,247.16,247.15,4.75608842]
[1758248015659,16.59846676,247.16,247.15,4.75608842]
[1758248015867,47.93846676,247.16,247.15,4.75608842]
[1758248018360,47.93846676,247.16,247.14,4.04628955]
[1758248018662,16.59846676,247.15,247.14,4.04628955]
[1758248020146,47.93846676,247.15,247.14,4.04628955]
[1758248021673,47.93846676,247.15,247.14,4.75628955]
[1758248024366,47.93846676,247.15,247.14,4.04628955]
[1758248024671,13.59559401,247.14,247.13,2.30359122]
[1758248024843,13.59559401,247.14,247.13,3.01359122]
[1758248024844,16.31414362,247.14,247.13,3.01359122]
[1758248025043,16.31414362,247.14,247.13,7.0600445]
[1758248025249,16.31414362,247.14,247.13,6.3500445]
[1758248025560,16.31414362,247.14,247.13,0.03]
[1758248025805,16.59846676,247.14,247.13,0.03]
[1758248026073,17.28846676,247.14,247.13,0.03]
[1758248026968,47.93846676,247.14,247.13,0.03]
[1758248027170,48.62846676,247.14,247.13,0.03]
[1758248028573,50.90205798,247.14,247.13,0.03]
[1758248029458,39.59559401,247.12,247.11,0.13]
[1758248029754,79.57387284,247.12,247.11,0.13]
[1758248029952,80.26387284,247.12,247.11,0.13]
[1758248030260,82.53746406,247.12,247.11,0.13]
[1758248032363,79.1756492,247.12,247.11,0.13]
[1758248033369,82.53746406,247.12,247.11,0.13]
[1758248034373,79.1756492,247.12,247.11,0.13]
[1758248034764,76.90205798,247.12,247.11,0.13]
[1758248034962,45.56205798,247.12,247.11,0.13]
[1758248035151,76.90205798,247.12,247.11,0.13]
[1758248035671,74.62846676,247.12,247.07,2.10359122]
[1758248035879,17.30846676,247.11,247.07,2.27359122]
[1758248036061,13.87991715,247.09,247.07,2.27359122]
[1758248036250,47.93846676,247.08,247.07,2.27359122]
[1758248036877,0.28432314,247.06,247.04,2.27359122]
[1758248037061,45.92991715,247.05,247.04,2.27359122]
[1758248037956,48.64143127,247.05,247.04,2.27359122]
[1758248038481,45.21991715,247.05,247.04,2.27359122]
[1758248039679,48.63965024,247.05,247.04,2.27359122]
[1758248039855,47.92965024,247.05,247.01,0.1]
[1758248040060,45.21991715,247.05,247.04,2.27359122]
[1758248040376,48.63965087,247.05,247.04,2.27359122]
[1758248040581,48.63965087,247.05,247.01,0.1]
[1758248040801,45.21991715,247.05,247.04,2.27359122]
[1758248040961,47.92947174,247.05,247.04,2.27359122]
[1758248042288,47.92947174,247.05,247.01,0.1]
[1758248042462,13.59559401,247.03,247.01,0.1]
[1758248042663,44.93559401,247.02,247.01,0.1]
[1758248043074,44.93559401,247.02,247.01,0.13]
[1758248043583,44.93559401,247.02,247.01,2.40359122]
[1758248045185,44.93559401,247.02,247.01,0.13]
[1758248045186,45.21991715,247.02,247.01,0.13]
[1758248045371,45.21991715,247.02,247.01,2.40359122]
[1758248045770,47.92461768,247.02,247.01,2.40359122]
[1758248047091,48.63461768,247.02,247.01,2.40359122]
[1758248047478,47.92461768,247.02,247.01,2.40359122]
[1758248047666,48.63461768,247.02,247.01,2.40359122]
[1758248049190,47.92461768,247.02,247.01,2.40359122]
[1758248049591,48.63461768,247.02,247.01,2.40359122]
[1758248051572,48.63461768,247.02,247.01,0.13]
[1758248058484,50.9082089,247.02,247.01,0.13]
[1758248058871,53.18180012,247.02,247.01,0.13]
[1758248060699,19.5682089,247.02,247.01,0.13]
[1758248061001,53.20180012,247.02,247.01,0.13]
[1758248061291,21.84180012,247.02,247.01,0.13]
[1758248061490,53.20180012,247.02,247.01,0.13]
[1758248061792,53.20180012,247.02,246.91,0.1]
[1758248061793,39.59559401,246.92,246.91,0.1]
[1758248062094,71.23991715,246.92,246.91,0.1]
[1758248063099,74.64106902,246.92,246.91,0.1]
[1758248063872,76.26375416,246.92,246.91,0.1]
[1758248065081,75.55375416,246.92,246.91,0.1]
[1758248065600,76.23375416,246.92,246.91,0.1]
[1758248066998,44.19375416,246.92,246.91,0.1]
[1758248067183,75.55375416,246.92,246.91,0.1]
[1758248067705,73.93106902,246.92,246.91,0.1]
[1758248069599,42.57106902,246.92,246.91,0.1]
[1758248069799,73.93106902,246.92,246.91,0.1]
[1758248070505,85.88757314,246.92,246.91,0.1]
[1758248070819,54.52757314,246.92,246.91,0.1]
[1758248071010,85.88757314,246.92,246.91,0.1]
[1758248071686,86.56757314,246.92,246.91,0.1]
[1758248072005,55.20757314,246.92,246.91,0.1]
[1758248072303,86.56757314,246.92,246.91,0.1]
[1758248073208,55.20757314,246.92,246.91,0.1]
[1758248073500,85.88757314,246.92,246.91,0.1]
[1758248075308,54.52757314,246.92,246.91,0.1]
[1758248075497,85.88757314,246.92,246.91,0.1]
[1758248075809,88.16116436,246.92,246.91,0.1]
[1758248076507,56.80116436,246.92,246.91,0.1]
[1758248076716,54.52757314,246.92,246.91,0.79]
[1758248076885,54.52757314,246.92,246.91,3.06359122]
[1758248076886,28.24325,246.92,246.91,3.06359122]
[1758248077095,59.60325,246.92,246.91,3.06359122]
[1758248077403,59.88757314,246.92,246.91,3.06359122]
[1758248080792,16.57106902,246.92,246.91,3.06359122]
[1758248081007,16.28674588,246.92,246.91,7.14364994]
[1758248081210,47.64674588,246.92,246.91,3.09359122]
[1758248082109,47.64674588,246.92,246.91,0.82]
[1758248082293,16.28674588,246.92,246.91,3.09359122]
[1758248082494,47.64674588,246.92,246.91,3.09359122]
[1758248083818,47.64674588,246.92,246.91,7.14364994]
[1758248085806,47.64674588,246.92,246.91,6.32782497]
[1758248086207,16.28674588,246.92,246.91,6.32782497]
[1758248086408,47.64674588,246.92,246.91,6.32782497]
[1758248087207,47.62674588,246.92,246.91,6.32782497]
[1758248089315,44.93559401,246.92,246.91,6.32782497]
[1758248090514,44.93559401,246.92,246.91,4.87005872]
[1758248090698,44.93559401,246.92,246.91,6.32782497]
[1758248094808,13.59559401,246.92,246.91,6.32782497]
[1758248095007,44.93559401,246.92,246.91,6.32782497]
[1758248095202,13.59559401,246.92,246.91,6.32782497]
[1758248095407,44.93559401,246.92,246.91,6.32782497]
[1758248097631,0.28432314,246.96,246.91,6.32782497]
[1758248097923,13.87991715,246.97,246.94,1.45776625]
[1758248098123,13.59559401,246.95,246.94,1.45776625]
[1758248098433,16.30317105,246.95,246.94,1.45776625]
[1758248098831,16.30317105,246.95,246.94,2.12776625]
[1758248099129,47.64317105,246.95,246.94,6.17733294]
[1758248100615,47.64317105,246.95,246.94,0.67]
[1758248100868,16.30317105,246.95,246.94,0.67]
[1758248101024,47.64317105,246.95,246.94,0.67]
[1758248101223,13.59559401,246.94,246.91,0.13]
[1758248101436,13.59559401,246.92,246.91,0.8]
[1758248101630,44.93559401,246.92,246.91,4.17997753]
[1758248101839,44.93559401,246.92,246.91,5.63774378]
[1758248102013,44.93559401,246.92,246.91,4.17997753]
[1758248102212,31.34,246.92,246.91,4.84997753]
[1758248103936,13.59559401,246.97,246.91,16.43289059]
[1758248104229,34.04836752,246.96,246.92,0.67]
[1758248104436,2.70836752,246.95,246.92,0.67]
[1758248104637,31.34,246.94,246.93,12.16175129]
[1758248104834,31.34,246.94,246.93,12.83175129]
[1758248105225,31.34,246.94,246.93,18.33924823]
[1758248106134,31.34,246.94,246.93,28.46357496]
[1758248107537,25.7595574,247.01,246.93,28.46357496]
[1758248107538,13.65559401,247.01,246.93,28.46357496]
[1758248107757,2.70749287,247.0,246.96,31.831065]
[1758248107921,0.06,247.01,246.99,1.45776625]
[1758248108115,0.06,247.01,247.0,1.45776625]
[1758248108316,0.06,247.01,247.0,2.12776625]
[1758248108518,31.38,247.01,247.0,14.2855746]
[1758248108744,0.06,247.01,247.0,14.2855746]
[1758248109527,0.06,247.01,247.0,18.33415759]
[1758248111139,0.06,247.01,247.0,12.15780835]
[1758248111338,18.50787309,247.01,247.0,12.15780835]
[1758248111540,18.79219623,247.01,247.0,12.15780835]
[1758248111749,18.79219623,247.01,246.94,5.50728441]
[1758248111923,0.28432314,246.98,246.93,1.45776625]
[1758248112128,13.59559401,246.96,246.94,12.15780835]
[1758248113235,13.59559401,246.96,246.94,14.2855746]
[1758248113635,13.59559401,246.96,246.95,5.50716896]
[1758248113951,0.06,247.01,246.95,17.75844199]
[1758248114127,0.06,247.01,247.0,1.45776625]
[1758248114330,31.38,247.01,246.99,1.45776625]
[1758248114936,31.38,247.01,246.98,1.45776625]
[1758248115139,31.38,247.01,246.99,1.45776625]
[1758248115458,31.38,247.01,246.98,0.67]
[1758248115459,31.38,247.01,247.0,1.45776625]
[1758248115831,13.59559401,247.0,246.98,12.15928665]
[1758248116032,44.91559401,246.99,246.97,4.04894094]
[1758248117637,44.91559401,246.99,246.96,13.6170529]
[1758248117836,13.59559401,246.98,246.96,1.45776625]
[1758248118251,13.59559401,246.98,246.95,13.61902453]
[1758248118753,13.59559401,246.98,246.95,17.66838683]
[1758248119560,0.06,247.01,246.97,1.45776625]
[1758248119740,44.91559401,247.0,246.99,1.45776625]
[1758248120659,13.59559401,247.0,246.99,1.45776625]
[1758248120854,44.91559401,247.0,246.99,1.45776625]
[1758248121051,44.91559401,247.0,246.99,2.12776625]
[1758248121377,0.06,247.01,246.99,2.12776625]
[1758248121544,31.32,247.0,246.99,1.45776625]
[1758248121749,31.32,247.0,246.99,13.61754575]
[1758248122143,31.32,247.0,246.99,1.45776625]
[1758248122636,31.32,247.0,246.99,2.12776625]
[1758248123460,0.06,247.01,247.0,4.04858299]
[1758248123763,0.06,247.01,247.0,6.17634924]
[1758248124461,0.06,247.01,247.0,7.7971933]
[1758248124843,1e-08,247.01,247.0,9.25495955]
[1758248125045,0.06,247.04,247.03,26.0]
[1758248125265,0.06,247.04,247.03,28.9155325]
[1758248125570,0.06,247.04,247.03,28.10776625]
[1758248125741,0.06,247.04,247.03,40.26212663]
[1758248126255,0.06,247.04,247.03,45.7679842]
[1758248126444,0.06,247.04,247.03,44.31021795]
[1758248127146,0.06,247.04,247.03,45.7679842]
[1758248128944,0.06,247.04,247.03,50.14128295]
[1758248132044,0.06,247.07,247.03,60.26151126]
[1758248132361,0.06,247.07,247.06,1.45776625]
[1758248132662,0.06,247.09,247.06,15.62436545]
[1758248132868,0.06,247.09,247.08,27.45776625]
[1758248133271,1e-08,247.09,247.08,40.26089568]
[1758248134265,1e-08,247.09,247.08,44.30816781]
[1758248138875,1e-08,247.09,247.08,43.65816781]
[1758248139253,1e-08,247.09,247.08,5.50503838]
[1758248139254,0.68000001,247.09,247.08,5.50503838]
[1758248139666,0.68000001,247.09,247.08,7.12561977]
[1758248140557,0.68000001,247.09,247.08,5.66785352]
[1758248140771,0.68000001,247.09,247.08,7.12561977]
[1758248141965,0.68000001,247.09,247.06,5.5052328]
[1758248142276,31.98,247.08,247.06,4.04746655]
[1758248142452,0.68,247.07,247.06,4.04746655]
[1758248142657,0.68,247.07,247.06,5.5052328]
[1758248143881,1e-08,247.09,247.06,5.5052328]
[1758248144089,31.3,247.08,247.07,5.50520219]
[1758248145682,1e-08,247.09,247.07,5.50520219]
[1758248145905,31.30000001,247.09,247.08,2.92469873]
[1758248146183,31.30000001,247.09,247.08,15.0785667]
[1758248146684,31.30000001,247.09,247.08,14.4285667]
[1758248147681,31.30000001,247.09,247.08,19.12583883]
[1758248148156,31.30000001,247.09,247.08,18.47583883]
[1758248149064,31.98000001,247.09,247.03,0.03]
[1758248149269,31.98000001,247.09,247.04,12.15534531]
[1758248149471,0.28432314,247.07,247.04,12.15534531]
[1758248149683,13.59559401,247.05,247.03,0.03]
[1758248149879,45.57559401,247.04,247.03,0.03]
[1758248151970,45.85991715,247.04,247.03,0.03]
[1758248152775,48.13461588,247.04,247.03,0.03]
[1758248153783,45.85991715,247.04,247.03,0.03]
[1758248157600,44.89559401,247.04,247.03,2.96469873]
[1758248157786,44.89559401,247.04,247.03,2.30469873]
[1758248159708,44.89559401,247.04,247.03,0.03]
[1758248160098,13.59559401,247.04,247.03,0.03]
[1758248160303,44.89559401,247.04,247.03,0.03]
[1758248161875,44.89559401,247.04,247.03,2.30469873]
[1758248162071,0.14216157,247.08,247.03,2.96469873]
[1758248162297,44.89559401,247.07,247.06,2.27469873]
[1758248162880,44.89559401,247.07,247.05,2.27469873]
[1758248163087,0.68,247.06,247.04,2.27469873]
[1758248163405,31.3,247.05,247.04,2.27469873]
[1758248163997,31.3,247.05,247.03,6.35276428]
[1758248164381,31.3,247.05,247.03,7.01276428]
[1758248164699,31.3,247.05,247.04,2.27469873]
[1758248166103,31.3,247.05,247.04,6.32262619]
[1758248166397,31.3,247.05,247.04,4.04792746]
[1758248166781,31.3,247.05,247.03,2.30469873]
[1758248166990,13.59559401,247.04,247.03,0.03]
[1758248167300,14.55991715,247.04,247.03,0.03]
[1758248167499,16.83461588,247.04,247.03,0.03]
[1758248168189,14.55991715,247.04,247.03,0.03]
[1758248168697,16.83461588,247.04,247.03,0.03]
[1758248170700,14.55991715,247.04,247.03,0.03]
[1758248171103,45.85991715,247.04,247.03,0.03]
[1758248172803,48.13461588,247.04,247.03,0.03]
[1758248174286,45.85991715,247.04,247.03,0.03]
[1758248174486,48.13461588,247.04,247.03,0.03]
[1758248178595,13.87991715,247.04,247.03,0.03]
[1758248178787,26.0,247.08,247.03,0.69]
[1758248178788,2.27469873,247.08,247.03,0.69]
[1758248179108,13.59559401,247.06,247.04,0.66]
[1758248179314,31.58432314,247.05,247.04,0.66]
[1758248179889,13.59559401,247.04,247.03,0.03]
[1758248181505,13.87991715,247.04,247.03,0.03]
[1758248181900,16.83461588,247.04,247.03,0.03]
[1758248182510,16.15461588,247.04,247.03,0.03]
[1758248182895,47.45461588,247.04,247.03,0.03]
[1758248184415,48.13461588,247.04,247.03,0.03]
[1758248184721,45.17991715,247.04,247.03,0.03]
[1758248184905,47.45461588,247.04,247.03,0.03]
[1758248185216,16.15461588,247.04,247.03,0.03]
[1758248185407,13.87991715,247.04,247.03,0.69]
[1758248185709,44.89559401,247.04,247.03,0.69]
[1758248185927,13.59559401,247.04,247.03,2.96469873]
[1758248186120,44.89559401,247.04,247.03,0.69]
[1758248186418,44.89559401,247.04,247.03,7.01279005]
[1758248187014,31.3,247.04,247.03,7.01279005]
[1758248187219,13.59559401,247.07,247.03,7.01279005]
[1758248187420,13.59559401,247.05,247.04,2.93469873]
[1758248188219,44.89559401,247.05,247.04,2.93469873]
[1758248188423,44.89559401,247.05,247.04,6.98262619]
[1758248188922,44.89559401,247.05,247.04,4.70792746]
[1758248189497,13.59559401,247.05,247.04,4.70792746]
[1758248189798,44.89559401,247.05,247.04,4.70792746]
[1758248193528,44.89559401,247.05,247.04,6.98262619]
[1758248194420,44.89559401,247.05,247.04,4.70792746]
[1758248195620,44.89559401,247.05,247.04,6.98262619]
[1758248196230,13.59559401,247.05,247.04,6.98262619]
[1758248196527,44.89559401,247.05,247.04,6.98262619]
[1758248197531,20.75844508,247.08,247.04,6.98262619]
[1758248197710,13.59559401,247.07,247.06,2.27469873]
[1758248197911,31.3,247.07,247.06,2.27469873]
[1758248198513,31.3,247.07,247.06,2.93469873]
[1758248199326,31.3,247.07,247.06,6.9822985]
[1758248200723,31.3,247.07,247.06,4.70759977]
[1758248200929,31.3,247.07,247.06,6.3222985]
[1758248201126,31.28,247.07,247.06,6.3222985]
[1758248201324,20.61628351,247.08,247.06,4.04759977]
[1758248201508,20.61628351,247.08,247.06,6.3222985]
[1758248201509,31.28,247.07,247.06,6.3222985]
[1758248202433,13.59559401,247.06,247.03,0.03]
[1758248202727,31.28,247.05,247.03,0.03]
[1758248203110,31.28,247.05,247.03,4.07808189]
[1758248204921,31.28,247.05,247.03,0.03]
[1758248206721,13.59559401,247.04,247.03,0.03]
[1758248207307,31.28,247.05,247.03,2.96469873]
[1758248207530,31.28,247.05,247.04,2.27469873]
[1758248207829,31.28,247.05,247.04,2.11599364]
[1758248209438,31.28,247.05,247.04,7.61991474]
[1758248209637,1e-08,247.09,247.04,16.28373975]
[1758248209825,13.59559402,247.09,247.08,1.45599364]
[1758248210215,44.87559402,247.09,247.08,1.45599364]
[1758248211418,44.87559402,247.09,247.08,5.50326577]
[1758248212146,13.59559402,247.09,247.08,5.50326577]
[1758248212732,44.87559402,247.09,247.08,5.50326577]
[1758248213453,1e-08,247.09,247.08,5.50326577]
[1758248213641,31.28000001,247.09,247.08,6.16326577]
[1758248214543,31.28000001,247.09,247.08,5.50326577]
[1758248215243,44.87559402,247.09,247.08,4.04727213]
[1758248215436,13.59559402,247.09,247.08,4.04727213]
[1758248215638,44.87559402,247.09,247.08,4.04727213]
[1758248216139,44.87559402,247.09,247.08,1.45599364]
[1758248217252,13.59559402,247.09,247.08,5.50326577]
[1758248217538,44.87559402,247.09,247.08,5.50326577]
[1758248218231,31.28000001,247.09,247.08,6.21326577]
[1758248218634,31.28000001,247.09,247.08,5.50326577]
[1758248219550,44.87559402,247.09,247.08,5.50326577]
[1758248220844,44.87559402,247.09,247.07,5.50342186]
[1758248221244,13.59559401,247.08,247.07,1.45599364]
[1758248221450,13.59559401,247.08,247.06,1.45599364]
[1758248221743,31.28,247.07,247.06,1.45599364]
[1758248222157,31.28,247.07,247.05,4.04776361]
[1758248222370,31.28,247.07,247.06,1.45599364]
[1758248223548,31.28,247.07,247.05,5.50375725]
[1758248224127,31.28,247.07,247.05,4.04776361]
[1758248224343,44.87559401,247.07,247.06,1.45599364]
[1758248226341,44.87559401,247.07,247.05,1.45599364]
[1758248226543,13.59559401,247.07,247.05,1.45599364]
[1758248226742,31.28,247.06,247.05,1.45599364]
[1758248227452,13.59559401,247.07,247.05,1.45599364]
[1758248227752,31.28,247.06,247.04,4.0477985]
[1758248227955,31.28,247.06,247.04,4.7577985]
[1758248228831,31.28,247.06,247.05,1.45599364]
[1758248229046,13.59559401,247.05,247.03,0.03]
[1758248229245,31.28,247.04,247.03,1.48599364]
[1758248229750,31.28,247.04,247.03,5.53403775]
[1758248230138,31.28,247.04,247.03,1.48599364]
[1758248231362,31.28,247.04,247.03,0.03]
[1758248231363,45.82991715,247.04,247.03,0.03]
[1758248236261,47.28591079,247.04,247.03,0.03]
[1758248238963,48.38711077,247.04,247.03,0.03]
[1758248242260,51.55895717,247.04,247.03,0.03]
[1758248243263,48.38711077,247.04,247.03,0.03]
[1758248243860,47.71711077,247.04,247.03,0.03]
[1758248244375,46.93111713,247.04,247.03,0.03]
[1758248247772,46.26111713,247.04,247.03,0.03]